bitfinex-derivatives/quotes_BNBF0:USTF0_20241231
["timestamp","ask_amount","ask_price","bid_price","bid_amount"]
[1735640732356,1.47913066,706.51,705.12,0.28363966]
[1735640732965,1.47913066,706.51,705.16,1.05796978]
[1735640733863,1.47913066,706.51,705.12,0.28363966]
[1735640733864,1.47913066,706.51,705.12,1.34160944]
[1735640734863,1.47913066,706.51,705.12,0.28363966]
[1735640736561,1.05581641,706.91,705.12,0.28363966]
[1735640738168,1.47849177,707.05,705.29,1.05796978]
[1735640739262,1.47849177,707.05,705.17,1.05796978]
[1735640740269,1.47849177,707.05,705.19,0.2836115]
[1735640777804,0.26041816,707.04,705.19,0.2836115]
[1735640778001,1.05581641,707.02,705.25,1.05796978]
[1735640778203,0.26041816,707.01,705.25,1.05796978]
[1735640778798,1.05581641,706.76,705.39,1.05796978]
[1735640779496,1.47857553,706.75,705.39,1.05796978]
[1735640779698,1.47857553,706.75,705.19,0.2836115]
[1735640779699,1.47857553,706.75,705.24,1.05796978]
[1735640780703,1.47857553,706.75,705.19,0.2836115]
[1735640780704,1.47857553,706.75,705.26,1.05796978]
[1735640782004,1.47857553,706.75,705.23,1.05796978]
[1735640782798,1.47857553,706.75,705.22,1.05796978]
[1735640783906,1.47857553,706.75,705.24,0.2835914]
[1735640784205,1.47857553,706.75,705.26,1.05796978]
[1735640785105,1.47857553,706.75,705.42,1.05796978]
[1735640785906,1.47857553,706.75,705.38,1.05796978]
[1735640787200,1.47857553,706.75,705.26,1.05796978]
[1735640787603,1.47857553,706.75,705.28,0.28357531]
[1735640788206,1.47857553,706.75,705.39,1.05796978]
[1735640788706,1.47857553,706.75,705.41,0.28352305]
[1735640802011,1.47857553,706.75,705.42,1.05796978]
[1735640802408,1.47857553,706.75,705.44,0.283511]
[1735640803107,1.47857553,706.75,705.48,1.05796978]
[1735640803308,1.47857553,706.75,705.49,0.2834909]
[1735640804113,1.47857553,706.75,705.5,1.05796978]
[1735640804314,1.47857553,706.75,705.51,0.28348287]
[1735640806148,1.47857553,706.75,705.56,1.05796978]
[1735640806852,1.47857553,706.75,705.61,1.05796978]
[1735640808053,1.47857553,706.75,705.59,1.05796978]
[1735640809042,1.47857553,706.75,705.57,1.05796978]
[1735640809950,1.05581641,706.73,705.51,0.28348287]
[1735640810648,1.47857553,706.75,705.51,1.34145265]
[1735640810649,1.05581641,706.71,705.51,1.34145265]
[1735640812821,1.05581641,706.68,705.54,1.05796978]
[1735640813715,1.47859123,706.67,705.54,1.05796978]
[1735640813921,1.47859123,706.67,705.51,1.34145265]
[1735640814820,1.47859123,706.67,705.52,1.05796978]
[1735640815915,1.47859123,706.67,705.51,0.28348287]
[1735640841844,1.05581641,706.79,705.51,0.28348287]
[1735640842044,2.53450712,706.79,705.51,0.28348287]
[1735640843246,1.47869071,706.79,705.51,0.28348287]
[1735640878266,1.05581641,706.73,705.51,0.28348287]
[1735640880260,1.05581641,706.69,705.51,0.28348287]
[1735640880863,1.05581641,706.69,705.51,1.34145265]
[1735640880864,1.4786017,706.68,705.51,1.34145265]
[1735640882266,1.05581641,706.65,705.51,1.34145265]
[1735640883167,1.05581641,706.67,705.51,0.28348287]
[1735640883664,1.4786017,706.68,705.51,0.28348287]
[1735640885372,2.53993155,706.68,705.51,0.28348287]
[1735640886372,1.4786017,706.68,705.51,0.28348287]
[1735640890374,1.4786017,706.68,705.51,1.34493127]
[1735640892382,1.4786017,706.68,705.51,0.28348287]
[1735640894683,1.4786017,706.68,705.51,1.34493127]
[1735640895479,1.4786017,706.68,705.51,0.28348287]
[1735640896378,1.4786017,706.68,705.51,1.34493127]
[1735640896986,1.4786017,706.68,705.52,1.0614484]
[1735640898188,1.4786017,706.68,705.51,0.28348287]
[1735640904387,1.06132985,706.88,705.51,0.28348287]
[1735640904784,1.47847607,706.78,705.51,0.28348287]
[1735640905086,1.47837138,706.87,705.51,0.28348287]
[1735640907085,1.06132985,706.85,705.51,0.28348287]
[1735640908087,1.06132985,706.84,705.51,0.28348287]
[1735640908283,0.2604767,706.83,705.51,0.28348287]
[1735640909091,1.06132985,706.72,705.51,0.28348287]
[1735640912496,1.06132985,706.76,705.51,0.28348287]
[1735640913594,1.47837138,706.87,705.51,0.28348287]
[1735640913595,1.06132985,706.73,705.56,1.0614484]
[1735640914693,1.06132985,706.7,705.53,1.0614484]
[1735640915393,1.47857553,706.69,705.53,1.0614484]
[1735640915599,1.47857553,706.69,705.52,1.0614484]
[1735640916894,1.47857553,706.69,705.51,0.28348287]
[1735640917597,1.47857553,706.69,705.52,1.0614484]
[1735640918801,1.47857553,706.69,705.51,1.34493127]
[1735640919902,1.47857553,706.69,705.51,0.28348287]
[1735640922706,1.47857553,706.69,705.56,1.0614484]
[1735640923407,1.47857553,706.69,705.59,1.0614484]
[1735640924909,1.47857553,706.69,705.57,1.0614484]
[1735640925908,1.47857553,706.69,705.61,1.0614484]
[1735640928009,1.47857553,706.69,705.57,1.0614484]
[1735640929211,1.06132985,706.68,705.56,1.0614484]
[1735640930014,1.47857553,706.69,705.51,0.28348287]
[1735640935417,1.06132985,706.75,705.51,0.28348287]
[1735640935918,1.06132985,706.78,705.53,1.0614484]
[1735640936120,1.06132985,706.78,705.54,0.28347081]
[1735640936912,1.47841325,706.79,705.57,1.0614484]
[1735640937114,1.47841325,706.79,705.58,0.28345474]
[1735640939519,1.06132985,706.76,705.62,1.0614484]
[1735640939719,1.06132985,706.76,705.63,0.28343466]
[1735640940615,1.06132985,706.78,705.64,1.0614484]
[1735640941613,1.47841325,706.79,705.63,0.28343466]
[1735640941614,1.06132985,706.74,705.63,0.28343466]
[1735640942623,1.47841325,706.79,705.63,0.28343466]
[1735640942624,1.06132985,706.75,705.63,0.28343466]
[1735640943918,1.06132985,706.71,705.63,0.28343466]
[1735640944822,1.06132985,706.7,705.63,0.28343466]
[1735640945722,1.27359583,707.14,705.63,0.28343466]
[1735640945723,1.06132985,706.74,705.63,0.28343466]
[1735640945923,1.47854935,706.69,705.63,0.28343466]
[1735640950020,1.06132985,706.67,705.63,0.28343466]
[1735640950822,2.5398792,706.69,705.63,0.28343466]
[1735640952226,1.06132985,706.66,705.63,0.28343466]
[1735640953327,2.5398792,706.69,705.63,0.28343466]
[1735640954426,1.47854935,706.69,705.63,0.28343466]
[1735640957529,2.5398792,706.69,705.63,0.28343466]
[1735640958630,1.47854935,706.69,705.63,0.28343466]
[1735640962330,1.06132985,706.71,705.63,0.28343466]
[1735640962729,1.47847083,706.72,705.63,0.28343466]
[1735640965735,1.47847083,706.72,705.63,1.34488306]
[1735640966637,1.47847083,706.72,705.65,1.0614484]
[1735640967829,1.47847083,706.72,705.72,1.0614484]
[1735640968535,1.47847083,706.72,705.63,0.28343466]
[1735640994356,1.06132985,706.95,705.63,0.28343466]
[1735640994560,1.47850224,706.81,705.63,0.28343466]
[1735640994762,1.06132985,706.95,705.63,0.28343466]
[1735640995058,1.47845513,706.81,705.63,0.28343466]
[1735640995257,1.06132985,706.97,705.63,0.28343466]
[1735640996362,1.06132985,706.98,705.63,0.28343466]
[1735640996664,1.47835568,706.96,705.63,0.28343466]
[1735640997364,2.53968553,706.96,705.63,0.28343466]
[1735640998662,1.47835568,706.96,705.63,0.28343466]
[1735640999661,1.06132985,706.9,705.63,0.28343466]
[1735641000864,1.06132985,706.89,705.63,0.28343466]
[1735641001869,1.06132985,706.84,705.63,0.28343466]
[1735641002773,1.06132985,706.83,705.63,0.28343466]
[1735641003865,1.06132985,706.81,705.63,0.28343466]
[1735641004970,1.06132985,706.75,705.63,0.28343466]
[1735641005872,1.06132985,706.74,705.63,0.28343466]
[1735641006772,1.47847607,706.73,705.63,0.28343466]
[1735641007268,1.06132985,706.72,705.63,0.28343466]
[1735641008275,2.53980592,706.73,705.63,0.28343466]
[1735641010778,1.47847607,706.73,705.63,0.28343466]
[1735641019778,1.06132985,706.72,705.64,1.0614484]
[1735641020978,1.47847607,706.73,705.63,0.28343466]
[1735641025977,1.06132985,706.67,705.64,1.0614484]
[1735641026976,1.06132985,706.69,705.63,1.34488306]
[1735641028180,1.06132985,706.71,705.64,1.0614484]
[1735641029180,1.06132985,706.71,705.67,1.0614484]
[1735641030179,1.06132985,706.71,705.63,0.28343466]
[1735641031287,1.06132985,706.7,705.63,0.28343466]
[1735641032389,1.47847607,706.73,705.63,0.28343466]
[1735641091738,1.47847607,706.73,704.94,1.0614484]
[1735641091929,1.47847607,706.73,704.96,0.28370403]
[1735641092726,0.2829975,706.72,704.96,0.28370403]
[1735641094833,0.26055719,706.71,704.96,0.28370403]
[1735641095231,1.06132985,706.59,705.05,1.0614484]
[1735641095430,1.06132985,706.59,705.06,0.2836638]
[1735641095933,1.47919877,706.58,705.06,0.2836638]
[1735641097336,2.54052862,706.58,705.06,0.2836638]
[1735641098139,1.47919877,706.58,705.06,0.2836638]
[1735641099639,0.28305758,706.57,705.06,0.2836638]
[1735641100837,0.26063631,706.56,705.06,0.2836638]
[1735641101038,0.2830656,706.55,705.06,0.2836638]
[1735641101437,0.26064013,706.54,705.06,0.2836638]
[1735641101836,0.28307361,706.53,705.06,0.2836638]
[1735641102039,1.06132985,706.48,705.06,0.2836638]
[1735641102234,0.54375543,706.47,705.06,0.2836638]
[1735641102433,0.54375944,706.46,705.06,0.2836638]
[1735641102633,0.28310566,706.45,705.06,0.2836638]
[1735641106142,1.47974388,706.44,705.06,0.2836638]
[1735641106343,0.28311368,706.43,705.06,0.2836638]
[1735641111450,0.26064602,706.42,705.06,0.2836638]
[1735641111656,0.28312169,706.41,705.06,0.2836638]
[1735641112154,0.26065619,706.4,705.06,0.2836638]
[1735641116558,0.28312169,706.41,705.06,0.2836638]
[1735641119560,0.26064714,706.4,705.06,0.2836638]
[1735641121455,0.26065887,706.39,705.06,0.2836638]
[1735641121662,0.28312169,706.41,705.06,0.2836638]
[1735641121956,0.26067724,706.4,705.06,0.2836638]
[1735641122860,1.06132985,706.37,705.06,0.2836638]
[1735641123056,0.26067724,706.36,705.06,0.2836638]
[1735641123260,0.28314574,706.35,705.06,0.2836638]
[1735641123456,0.26067724,706.34,705.06,0.2836638]
[1735641124761,0.26065164,706.33,705.06,0.2836638]
[1735641124961,0.26065164,706.32,705.06,0.2836638]
[1735641125163,0.26065164,706.31,705.06,0.2836638]
[1735641125361,1.76299449,706.35,705.06,0.2836638]
[1735641125559,0.26064858,706.34,705.06,0.2836638]
[1735641127163,0.26065319,706.33,705.06,0.2836638]
[1735641127363,0.26065319,706.32,705.06,0.2836638]
[1735641127663,1.76299449,706.35,705.06,0.2836638]
[1735641132363,1.06132985,706.33,705.06,0.2836638]
[1735641133267,1.06132985,706.31,705.06,0.2836638]
[1735641134066,1.76299449,706.35,705.06,0.2836638]
[1735641134067,1.06132985,706.3,705.06,0.2836638]
[1735641135773,1.06132985,706.33,705.06,0.2836638]
[1735641137074,1.06132985,706.3,705.06,0.2836638]
[1735641139775,1.06132985,706.31,705.06,0.2836638]
[1735641140669,2.82432434,706.35,705.06,0.2836638]
[1735641141774,1.06132985,706.31,705.06,0.2836638]
[1735641142675,1.76299449,706.35,705.06,0.2836638]
[1735641142676,1.06132985,706.34,705.06,0.2836638]
[1735641143568,1.76299449,706.35,705.06,0.2836638]
[1735641145774,2.82432434,706.35,705.06,0.2836638]
[1735641146877,1.76299449,706.35,705.06,0.2836638]
[1735641156782,1.76299449,706.35,705.07,1.0614484]
[1735641157885,1.76299449,706.35,705.09,1.0614484]
[1735641159780,0.28314574,706.35,705.09,1.0614484]
[1735641159989,0.28314574,706.35,705.1,1.0614484]
[1735641160786,0.28314574,706.35,705.2,1.0614484]
[1735641161887,0.28314574,706.35,705.18,1.0614484]
[1735641163183,1.47914637,706.46,705.18,1.0614484]
[1735641164087,1.47914637,706.46,705.06,0.2836638]
[1735641166587,1.06132985,706.89,705.06,0.2836638]
[1735641166888,1.47906779,706.55,705.06,0.2836638]
[1735641167082,0.28293345,706.88,705.06,0.2836638]
[1735641167286,1.76178125,706.88,705.06,0.2836638]
[1735641169389,0.26048399,706.87,705.06,0.2836638]
[1735641171385,0.26048399,706.87,705.06,1.3451122]
[1735641171587,0.26049512,706.86,705.06,1.3451122]
[1735641171790,0.26049754,706.85,705.06,1.3451122]
[1735641172590,0.26049754,706.85,705.06,0.2836638]
[1735641174287,0.26049512,706.86,705.06,0.2836638]
[1735641174591,0.26054831,706.85,705.06,0.2836638]
[1735641176093,1.32187816,706.85,705.06,0.2836638]
[1735641176387,0.26054831,706.84,705.06,0.2836638]
[1735641177096,1.06132985,706.8,705.06,0.2836638]
[1735641177395,0.54352192,706.79,705.06,0.2836638]
[1735641177690,0.26055244,706.78,705.06,0.2836638]
[1735641179591,0.26054669,706.77,705.06,0.2836638]
[1735641179790,0.54352417,706.77,705.06,0.2836638]
[1735641179994,0.26054669,706.76,705.06,0.2836638]
[1735641180395,0.26054443,706.75,705.06,0.2836638]
[1735641180596,0.26054443,706.74,705.06,0.2836638]
[1735641180797,0.28297748,706.77,705.06,0.2836638]
[1735641181099,0.26054326,706.76,705.06,0.2836638]
[1735641181999,0.28298549,706.75,705.06,0.2836638]
[1735641182199,0.26054326,706.74,705.06,0.2836638]
[1735641182602,0.2829935,706.73,705.06,0.2836638]
[1735641182800,0.26054326,706.72,705.06,0.2836638]
[1735641182996,0.2829935,706.73,705.06,0.2836638]
[1735641183198,0.26055027,706.72,705.06,0.2836638]
[1735641183603,0.28300151,706.71,705.06,0.2836638]
[1735641183798,0.26055027,706.7,705.06,0.2836638]
[1735641184304,0.26055121,706.69,705.06,0.2836638]
[1735641184503,1.32188106,706.68,705.17,1.0614484]
[1735641184700,0.26055121,706.67,705.17,1.0614484]
[1735641185103,0.26055121,706.67,705.18,0.28361553]
[1735641185703,1.06132985,706.61,705.18,0.28361553]
[1735641186899,1.06132985,706.6,705.18,0.28361553]
[1735641188006,1.06132985,706.57,705.18,1.34506393]
[1735641188901,2.5403924,706.59,705.18,1.34506393]
[1735641190010,1.06132985,706.56,705.22,1.0614484]
[1735641190306,1.06132985,706.56,705.23,0.28359542]
[1735641190807,1.47906255,706.59,705.23,0.28359542]
[1735641190808,1.06132985,706.54,705.23,0.28359542]
[1735641191207,0.26057537,706.53,705.23,0.28359542]
[1735641191403,1.06132985,706.54,705.23,0.28359542]
[1735641191603,0.26057379,706.53,705.23,0.28359542]
[1735641191804,1.06132985,706.48,705.23,0.28359542]
[1735641193203,1.06132985,706.47,705.23,0.28359542]
[1735641194308,1.06132985,706.5,705.23,0.28359542]
[1735641195107,1.06132985,706.51,705.23,0.28359542]
[1735641197804,2.5403924,706.59,705.27,1.0614484]
[1735641198009,1.06132985,706.59,705.27,1.0614484]
[1735641198309,1.47891065,706.58,705.27,1.0614484]
[1735641199009,1.47891065,706.58,705.28,0.28357531]
[1735641206709,1.47891065,706.58,705.39,1.0614484]
[1735641207213,1.47891065,706.58,705.4,0.28352707]
[1735641218618,2.5402405,706.58,705.4,0.28352707]
[1735641219619,1.06132985,706.56,705.4,0.28352707]
[1735641220616,1.47891065,706.58,705.4,0.28352707]
[1735641221725,1.06132985,706.57,705.4,0.28352707]
[1735641222823,1.06132985,706.55,705.4,0.28352707]
[1735641223018,0.26057835,706.54,705.4,0.28352707]
[1735641223818,1.06132985,706.46,705.4,0.28352707]
[1735641224422,1.47919877,706.45,705.4,0.28352707]
[1735641227822,1.06132985,706.43,705.4,0.28352707]
[1735641228626,2.54052862,706.45,705.4,0.28352707]
[1735641230025,1.47919877,706.45,705.4,0.28352707]
[1735641237832,0.26060157,706.44,705.4,0.28352707]
[1735641238937,0.26060157,706.44,705.02,1.0614484]
[1735641239333,1.06132985,706.43,705.03,0.28367587]
[1735641240140,1.47919877,706.45,705.03,0.28367587]
[1735641240338,0.26060878,706.44,705.03,0.28367587]
[1735641241441,2.54052862,706.45,705.03,0.28367587]
[1735641241740,2.54052862,706.45,705.03,2.70823256]
[1735641242035,0.26060131,706.44,705.03,2.70823256]
[1735641242435,0.26060131,706.44,705.03,0.28367587]
[1735641242840,1.32193116,706.44,705.03,0.28367587]
[1735641243042,0.26060131,706.43,705.03,0.28367587]
[1735641243945,1.06132985,706.4,705.03,0.28367587]
[1735641244943,2.54052862,706.45,705.03,0.28367587]
[1735641245242,0.2606199,706.44,705.03,0.28367587]
[1735641245639,1.06132985,706.43,705.03,0.28367587]
[1735641245837,0.2606199,706.42,705.03,0.28367587]
[1735641246944,1.06132985,706.4,705.03,0.28367587]
[1735641247142,0.26064814,706.39,705.03,0.28367587]
[1735641247845,1.06132985,706.37,705.03,0.28367587]
[1735641248341,0.2606503,706.36,705.03,0.28367587]
[1735641248537,1.74032602,706.36,705.03,0.28367587]
[1735641248738,0.2606503,706.35,705.03,0.28367587]
[1735641248943,1.06132985,706.33,705.03,0.28367587]
[1735641249942,1.47967572,706.36,705.03,0.28367587]
[1735641259850,2.54100557,706.36,705.03,0.28367587]
[1735641260654,0.26064739,706.35,705.03,0.28367587]
[1735641260953,1.06132985,706.35,705.03,0.28367587]
[1735641262049,1.47967572,706.36,705.03,0.28367587]
[1735641275061,1.47967572,706.36,705.04,1.0614484]
[1735641275261,1.47967572,706.36,705.05,0.28366782]
[1735641291274,1.47967572,706.36,705.07,1.0614484]
[1735641291671,1.47967572,706.36,705.08,0.28365575]
[1735641292170,1.47967572,706.36,705.1,1.0614484]
[1735641292371,1.47967572,706.36,705.11,0.28364368]
[1735641292974,1.47967572,706.36,705.14,1.0614484]
[1735641294971,1.47967572,706.36,705.18,1.0614484]
[1735641296073,1.47967572,706.36,705.19,1.0614484]
[1735641297084,1.47967572,706.36,705.25,1.0614484]
[1735641297673,1.47967572,706.36,705.17,1.0614484]
[1735641299774,1.47967572,706.36,705.13,1.0614484]
[1735641300678,1.47967572,706.36,705.17,1.0614484]
[1735641301778,1.47967572,706.36,705.19,1.0614484]
[1735641302881,1.47967572,706.36,705.21,1.0614484]
[1735641303882,2.54100557,706.36,705.17,1.0614484]
[1735641304979,2.54100557,706.36,705.11,0.28364368]
[1735641304980,1.06132985,706.35,705.22,1.0614484]
[1735641306485,1.47903636,706.52,705.15,1.0614484]
[1735641307283,1.47903636,706.52,705.12,1.0614484]
[1735641308483,1.47903636,706.52,705.33,1.0614484]
[1735641309786,1.47903636,706.52,705.31,1.0614484]
[1735641311088,1.47903636,706.52,705.15,1.0614484]
[1735641312284,1.47903636,706.52,705.12,1.0614484]
[1735641314088,1.47903636,706.52,705.13,1.0614484]
[1735641315186,1.47903636,706.52,705.17,1.0614484]
[1735641316291,1.47903636,706.52,705.14,1.0614484]
[1735641317291,1.47903636,706.52,705.15,1.0614484]
[1735641318395,1.47903636,706.52,705.19,1.0614484]
[1735641319597,1.47903636,706.52,705.16,1.0614484]
[1735641320497,1.47903636,706.52,705.28,1.0614484]
[1735641321591,1.47903636,706.52,705.3,1.0614484]
[1735641322593,1.47903636,706.52,705.29,1.0614484]
[1735641323599,1.47903636,706.52,705.26,1.0614484]
[1735641324892,1.47903636,706.52,705.23,1.0614484]
[1735641325700,1.47903636,706.52,705.25,1.0614484]
[1735641326797,1.47903636,706.52,705.26,0.28358335]
[1735641342209,1.47903636,706.52,705.3,1.0614484]
[1735641343109,1.47903636,706.52,705.26,0.28358335]
[1735641352214,0.26059089,706.51,705.26,0.28358335]
[1735641352408,1.47903636,706.52,705.26,0.28358335]
[1735641352612,0.26059165,706.51,705.26,0.28358335]
[1735641353516,1.32192496,706.5,705.26,0.28358335]
[1735641353715,1.06132985,706.5,705.26,0.28358335]
[1735641354317,1.76211397,706.52,705.26,0.28358335]
[1735641354517,0.26059952,706.51,705.26,0.28358335]
[1735641354720,1.76211397,706.52,705.26,0.28358335]
[1735641354917,0.26059705,706.51,705.26,0.28358335]
[1735641355317,0.26059858,706.5,705.26,0.28358335]
[1735641355517,1.76211397,706.52,705.26,0.28358335]
[1735641359321,0.28308162,706.51,705.26,0.28358335]
[1735641361823,1.47962329,706.5,705.26,0.28358335]
[1735641363521,1.76270892,706.5,705.26,0.28358335]
[1735641368231,0.26060829,706.49,705.26,0.28358335]
[1735641369033,1.76270892,706.5,705.26,0.28358335]
[1735641370225,0.26060869,706.49,705.26,0.28358335]
[1735641370427,1.76270892,706.5,705.26,0.28358335]
[1735641371733,0.26059917,706.49,705.26,0.28358335]
[1735641372332,1.76270892,706.5,705.26,0.28358335]
[1735641372634,0.26059829,706.49,705.26,0.28358335]
[1735641373430,1.06132985,706.45,705.26,0.28358335]
[1735641374433,1.06132985,706.48,705.26,0.28358335]
[1735641375633,1.06132985,706.49,705.26,0.28358335]
[1735641376633,2.82403877,706.5,705.26,0.28358335]
[1735641377528,1.06132985,706.49,705.26,0.28358335]
[1735641378935,1.06132985,706.46,705.26,0.28358335]
[1735641381238,1.06132985,706.45,705.26,0.28358335]
[1735641382331,1.06132985,706.44,705.26,0.28358335]
[1735641383140,1.06132985,706.41,705.26,0.28358335]
[1735641383835,1.47946603,706.4,705.26,0.28358335]
[1735641384041,1.06132985,706.37,705.26,0.28358335]
[1735641384943,1.47946603,706.4,705.26,0.28358335]
[1735641384944,1.06132985,706.36,705.26,0.28358335]
[1735641387238,1.47946603,706.4,705.26,0.28358335]
[1735641400651,1.06132985,706.37,705.26,0.28358335]
[1735641402151,1.06132985,706.32,705.26,0.28358335]
[1735641402955,1.34441548,706.5,705.26,0.28358335]
[1735641404056,1.06132985,706.49,705.26,0.28358335]
[1735641404652,1.47960756,706.48,705.26,0.28358335]
[1735641412863,1.06132985,706.4,705.26,0.28358335]
[1735641414156,1.06132985,706.42,705.26,0.28358335]
[1735641417165,1.06132985,706.36,705.26,0.28358335]
[1735641417762,1.47949224,706.35,705.26,0.28358335]
[1735641418361,2.54082209,706.35,705.26,0.28358335]
[1735641420365,1.06132985,706.33,705.26,0.28358335]
[1735641421266,1.06132985,706.27,705.26,0.28358335]
[1735641422565,1.06132985,706.23,705.26,0.28358335]
[1735641425466,1.06132985,706.28,705.26,0.28358335]
[1735641426370,1.06132985,706.27,705.26,0.28358335]
[1735641427366,1.06132985,706.25,705.26,0.28358335]
[1735641428269,1.47950796,706.24,705.26,0.28358335]
[1735641462090,1.47950796,706.24,704.62,1.0614484]
[1735641462291,1.47950796,706.24,704.64,0.28383287]
[1735641467694,1.47950796,706.24,704.65,1.0614484]
[1735641467893,1.47950796,706.24,704.67,0.28382079]
[1735641468495,1.47950796,706.24,704.7,1.0614484]
[1735641468987,1.47950796,706.24,704.71,0.28380468]
[1735641470896,1.47950796,706.24,704.76,1.0614484]
[1735641471900,1.47950796,706.24,704.84,1.0614484]
[1735641472693,1.47950796,706.24,704.9,1.0614484]
[1735641473696,1.47950796,706.24,704.88,1.0614484]
[1735641474093,1.47950796,706.24,704.89,0.28373221]
[1735641490808,0.26070534,706.23,704.89,0.28373221]
[1735641491008,1.47950796,706.24,704.89,0.28373221]
[1735641491211,0.26070597,706.23,704.89,0.28373221]
[1735641492308,1.06132985,706.14,704.89,0.28373221]
[1735641492911,1.47995365,706.13,704.89,0.28373221]
[1735641493311,1.06132985,706.04,704.89,0.28373221]
[1735641494215,1.06132985,706.11,704.89,0.28373221]
[1735641495110,1.47995365,706.13,704.89,0.28373221]
[1735641495111,1.06132985,706.1,704.89,0.28373221]
[1735641496115,1.06132985,706.09,704.89,0.28373221]
[1735641497220,1.47995365,706.13,704.89,0.28373221]
[1735641497221,1.06132985,706.11,704.89,0.28373221]
[1735641499815,1.47995365,706.13,704.89,0.28373221]
[1735641505328,2.5412835,706.13,704.89,0.28373221]
[1735641506327,1.06132985,706.12,704.9,1.0614484]
[1735641507229,1.06132985,706.12,704.89,1.34518061]
[1735641508327,1.47995365,706.13,704.94,1.0614484]
[1735641509223,1.47995365,706.13,704.89,0.28373221]
[1735641510126,1.06132985,706.22,704.89,0.28373221]
[1735641510532,0.65799436,706.8,704.89,0.28373221]
[1735641510533,1.48005855,706.12,704.89,0.28373221]
[1735641510727,1.06132985,706.18,704.89,0.28373221]
[1735641511025,1.48007953,706.11,704.89,0.28373221]
[1735641512836,1.06132985,706.16,704.89,0.28373221]
[1735641513034,1.48009527,706.1,704.89,0.28373221]
[1735641528745,1.48009527,706.1,704.93,1.0614484]
[1735641529047,1.48009527,706.1,704.94,0.28371208]
[1735641531048,1.48009527,706.1,704.94,1.34516048]
[1735641533249,1.48009527,706.1,704.94,2.57737782]
[1735641533450,1.48009527,706.1,704.94,1.34516048]
[1735641534343,1.48009527,706.1,704.94,0.28371208]
[1735641536655,1.48009527,706.1,704.94,1.34516048]
[1735641536853,1.48009527,706.1,704.94,2.57734099]
[1735641537055,1.48009527,706.1,704.95,1.23218051]
[1735641537350,1.48009527,706.1,704.96,0.28370403]
[1735641539155,1.48009527,706.1,704.96,2.8820032]
[1735641539357,1.48009527,706.1,704.97,2.42670275]
[1735641539558,1.48009527,706.1,704.98,0.28369599]
[1735641539858,1.48009527,706.1,704.98,5.30869791]
[1735641540058,1.48009527,706.1,704.99,2.42670275]
[1735641540460,1.48009527,706.1,704.98,0.28369599]
[1735641573981,1.06132985,706.09,704.98,0.28369599]
[1735641575182,1.48009527,706.1,704.98,0.28369599]
[1735641575183,1.06132985,706.06,704.98,0.28369599]
[1735641575982,1.48009527,706.1,704.98,0.28369599]
[1735641578385,1.06132985,706.09,704.98,0.28369599]
[1735641579185,1.48009527,706.1,704.98,0.28369599]
[1735641580280,2.54142512,706.1,704.98,0.28369599]
[1735641581381,1.06132985,706.09,704.98,0.28369599]
[1735641582186,2.54142512,706.1,704.98,0.28369599]
[1735641583084,1.48009527,706.1,704.98,0.28369599]
[1735641584085,1.06132985,706.07,704.98,0.28369599]
[1735641585089,1.06132985,706.08,704.98,0.28369599]
[1735641586185,1.06132985,706.07,704.98,0.28369599]
[1735641587291,1.06132985,706.08,704.98,0.28369599]
[1735641588195,1.06132985,706.07,704.98,0.28369599]
[1735641589194,1.06132985,706.04,704.98,0.28369599]
[1735641590195,1.06132985,706.05,704.98,0.28369599]
[1735641591293,1.06132985,706.01,704.98,0.28369599]
[1735641591998,1.48013724,706.0,704.98,0.28369599]
[1735641592394,1.06132985,705.95,704.98,0.28369599]
[1735641593302,1.06132985,705.94,704.98,0.28369599]
[1735641594598,1.06132985,705.93,704.98,0.28369599]
[1735641595498,1.48013724,706.0,704.98,0.28369599]
[1735641595499,1.06132985,705.94,704.98,0.28369599]
[1735641596400,1.06132985,705.91,704.98,0.28369599]
[1735641597303,1.06132985,705.93,704.98,0.28369599]
[1735641599104,1.48013724,706.0,704.98,0.28369599]
[1735641599105,1.06132985,705.96,704.98,0.28369599]
[1735641600405,2.54146709,706.0,704.98,0.28369599]
[1735641601401,1.06132985,705.97,704.98,0.28369599]
[1735641602403,2.54146709,706.0,704.98,0.28369599]
[1735641603608,1.48013724,706.0,704.98,0.28369599]
[1735641606103,1.06132985,705.98,704.98,0.28369599]
[1735641607311,1.06132985,705.99,704.98,0.28369599]
[1735641609306,2.54146709,706.0,704.98,0.28369599]
[1735641610607,1.06132985,705.99,704.98,0.28369599]
[1735641611612,1.48013724,706.0,704.98,0.28369599]
[1735641612813,1.06132985,705.97,704.98,0.28369599]
[1735641614009,1.48013724,706.0,704.98,0.28369599]
[1735641629829,1.06132985,706.13,704.98,0.28369599]
[1735641630226,1.47978058,706.12,704.98,0.28369599]
[1735641631425,1.47978058,706.12,705.0,1.0614484]
[1735641631625,1.06132985,706.3,705.0,1.0614484]
[1735641631927,1.47962329,706.2,705.0,1.0614484]
[1735641632122,1.06132985,706.3,705.0,1.0614484]
[1735641632531,1.47953417,706.29,704.98,0.28369599]
[1735641647638,0.28308563,706.5,704.98,0.28369599]
[1735641647639,1.47957611,706.38,704.98,0.28369599]
[1735641657641,1.47957611,706.38,704.98,1.34180425]
[1735641658742,1.47957611,706.38,705.02,1.05810826]
[1735641659136,1.47957611,706.38,705.04,0.28367184]
[1735641659743,1.47957611,706.38,705.06,1.05810826]